bitfinex-derivatives/quotes_BNBF0:USTF0_20250807
["timestamp","ask_amount","ask_price","bid_price","bid_amount"]
[1754578763069,0.825801,771.3,770.34,0.22571387]
[1754578763369,0.825801,771.29,770.34,0.22571387]
[1754578763569,0.825801,771.28,770.34,0.22571387]
[1754578763767,0.825801,771.27,770.34,0.22571387]
[1754578763967,0.825801,771.26,770.34,0.22571387]
[1754578764267,0.825801,771.25,770.34,0.22571387]
[1754578764465,0.825801,771.24,770.34,0.22571387]
[1754578764669,0.825801,771.23,770.34,0.22571387]
[1754578764869,0.825801,771.22,770.34,0.22571387]
[1754578765169,0.825801,771.21,770.34,0.22571387]
[1754578765369,0.825801,771.2,770.34,0.22571387]
[1754578765569,0.825801,771.19,770.34,0.22571387]
[1754578765766,0.825801,771.18,770.34,0.22571387]
[1754578765972,0.825801,771.17,770.34,0.22571387]
[1754578766266,0.82497036,771.16,770.34,0.22571387]
[1754578766569,0.82473446,771.15,770.34,0.22571387]
[1754578766770,0.82473446,771.14,770.34,0.22571387]
[1754578767068,0.82473446,771.13,770.34,0.22571387]
[1754578767269,0.82473446,771.12,770.34,0.22571387]
[1754578767468,0.706,771.31,770.34,0.22571387]
[1754578767469,0.82473446,771.11,770.34,0.22571387]
[1754578767669,0.82473446,771.1,770.34,0.22571387]
[1754578767965,0.82473446,771.09,770.34,0.22571387]
[1754578768269,0.82473446,771.08,770.34,0.22571387]
[1754578768469,0.706,771.31,770.34,0.22571387]
[1754578768667,0.82436465,771.3,770.34,0.22571387]
[1754578768967,0.82436465,771.29,770.34,0.22571387]
[1754578769171,0.706,771.31,770.34,0.22571387]
[1754578769368,0.82436465,771.3,770.34,0.22571387]
[1754578769573,0.82436465,771.29,770.34,0.22571387]
[1754578769775,0.82436465,771.28,770.34,0.22571387]
[1754578769970,0.82436465,771.27,770.34,0.22571387]
[1754578770171,0.82436465,771.26,770.34,0.22571387]
[1754578770370,0.82436465,771.25,770.34,0.22571387]
[1754578770575,0.82436465,771.24,770.34,0.22571387]
[1754578770872,0.82436465,771.23,770.34,0.22571387]
[1754578771070,0.82436465,771.22,770.34,0.22571387]
[1754578771372,0.706,771.31,770.34,0.22571387]
[1754578771573,0.82433681,771.3,770.34,0.22571387]
[1754578771773,0.82433681,771.29,770.34,0.22571387]
[1754578771973,0.82433681,771.28,770.34,0.22571387]
[1754578772172,0.82433681,771.27,770.34,0.22571387]
[1754578772371,0.82433681,771.26,770.34,0.22571387]
[1754578772575,0.82433681,771.25,770.34,0.22571387]
[1754578772776,0.82433681,771.24,770.34,0.22571387]
[1754578772972,0.82433681,771.23,770.34,0.22571387]
[1754578773173,0.706,771.31,770.34,0.22571387]
[1754578773378,0.82438791,771.3,770.34,0.22571387]
[1754578773677,0.82438791,771.29,770.34,0.22571387]
[1754578773877,0.82438791,771.28,770.34,0.22571387]
[1754578774078,0.82438791,771.27,770.34,0.22571387]
[1754578774273,0.82438791,771.26,770.34,0.22571387]
[1754578774577,0.82438791,771.25,770.34,0.22571387]
[1754578774772,0.82438791,771.24,770.34,0.22571387]
[1754578774976,0.82438791,771.23,770.34,0.22571387]
[1754578775174,0.82438791,771.22,770.34,0.22571387]
[1754578775374,0.706,771.31,770.34,0.22571387]
[1754578775580,0.82463189,771.3,770.34,0.22571387]
[1754578775877,0.82463189,771.29,770.34,0.22571387]
[1754578776173,0.82463189,771.28,770.34,0.22571387]
[1754578776373,0.82463189,771.27,770.34,0.22571387]
[1754578776677,0.82463189,771.26,770.34,0.22571387]
[1754578776877,0.82463189,771.25,770.34,0.22571387]
[1754578777078,0.82463189,771.24,770.34,0.22571387]
[1754578777279,0.82463189,771.23,770.34,0.22571387]
[1754578777473,0.706,771.31,770.34,0.22571387]
[1754578777678,0.82480982,771.3,770.34,0.22571387]
[1754578777876,0.82480982,771.29,770.34,0.22571387]
[1754578778080,0.82480982,771.28,770.34,0.22571387]
[1754578778281,0.706,771.31,770.34,0.22571387]
[1754578778580,0.82484309,771.3,770.34,0.22571387]
[1754578778781,0.706,771.31,770.34,0.22571387]
[1754578778981,0.82484883,771.3,770.34,0.22571387]
[1754578779181,0.82484883,771.29,770.34,0.22571387]
[1754578779379,0.706,771.31,770.34,0.22571387]
[1754578779581,0.82490067,771.3,770.34,0.22571387]
[1754578779777,0.82490067,771.29,770.34,0.22571387]
[1754578779977,0.82490067,771.28,770.34,0.22571387]
[1754578780278,0.82490067,771.27,770.34,0.22571387]
[1754578780476,0.82490067,771.26,770.34,0.22571387]
[1754578780681,0.82490067,771.25,770.34,0.22571387]
[1754578780881,0.82490067,771.24,770.34,0.22571387]
[1754578781079,0.82490067,771.23,770.34,0.22571387]
[1754578781278,0.82490067,771.22,770.34,0.22571387]
[1754578781581,0.706,771.31,770.34,0.22571387]
[1754578781778,0.82501545,771.3,770.34,0.22571387]
[1754578781981,0.82501545,771.29,770.34,0.22571387]
[1754578782180,0.82501545,771.28,770.34,0.22571387]
[1754578782480,0.82501545,771.27,770.34,0.22571387]
[1754578782681,0.82501545,771.26,770.34,0.22571387]
[1754578782877,0.82501545,771.25,770.34,0.22571387]
[1754578783083,0.706,771.31,770.34,0.22571387]
[1754578783084,0.82501545,771.24,770.34,0.22571387]
[1754578783278,0.82501545,771.23,770.34,0.22571387]
[1754578783577,0.82501545,771.22,770.34,0.22571387]
[1754578783780,0.706,771.31,770.34,0.22571387]
[1754578783976,0.82515747,771.3,770.34,0.22571387]
[1754578784182,0.82515747,771.29,770.34,0.22571387]
[1754578784478,0.82521455,771.28,770.34,0.22571387]
[1754578784682,0.82521455,771.27,770.34,0.22571387]
[1754578784882,0.82521455,771.26,770.34,0.22571387]
[1754578785080,0.82521455,771.25,770.34,1.09124291]
[1754578785282,0.706,771.31,770.34,1.09124291]
[1754578785283,0.82521455,771.24,770.34,1.09124291]
[1754578785481,0.82521455,771.23,770.34,0.22571387]
[1754578785782,0.82521455,771.22,770.34,0.22571387]
[1754578785980,0.706,771.31,770.34,0.22571387]
[1754578786180,0.82550052,771.3,770.34,1.09124291]
[1754578786484,0.706,771.31,770.34,1.09124291]
[1754578788186,0.706,771.31,770.35,0.86552904]
[1754578788486,0.928,771.3,770.36,0.86552904]
[1754578789279,0.928,771.3,770.37,0.86552904]
[1754578789484,0.928,771.3,770.36,0.86552904]
[1754578789985,0.928,771.3,770.35,0.86552904]
[1754578790186,0.928,771.3,770.36,0.86552904]
[1754578790485,0.928,771.3,770.35,0.86552904]
[1754578791386,0.716,771.29,770.35,0.86552904]
[1754578792888,0.716,771.29,770.34,1.09124291]
[1754578793185,0.716,771.29,770.44,0.86552904]
[1754578793387,0.716,771.29,770.46,0.86552904]
[1754578793588,0.716,771.29,770.47,0.86552904]
[1754578793885,0.716,771.29,770.48,0.86552904]
[1754578794185,0.716,771.29,770.5,0.86552904]
[1754578794384,0.716,771.29,770.49,0.86552904]
[1754578795085,0.716,771.29,770.5,0.86552904]
[1754578797090,0.716,771.29,770.51,0.86552904]
[1754578798190,0.716,771.29,770.52,0.86552904]
[1754578798492,0.716,771.29,770.51,0.86552904]
[1754578798790,0.716,771.29,770.56,0.86552904]
[1754578799289,0.716,771.29,770.57,0.86552904]
[1754578799794,0.716,771.29,770.56,0.86552904]
[1754578800094,0.716,771.29,770.67,0.86552904]
[1754578800392,0.716,771.29,770.65,0.86552904]
[1754578801191,0.716,771.29,770.65,0.86815524]
[1754578801390,0.716,771.29,770.69,0.86815524]
[1754578801589,0.716,771.29,770.73,0.86815524]
[1754578801789,0.716,771.29,770.77,0.86815524]
[1754578802090,0.716,771.29,770.81,0.86815524]
[1754578802294,0.716,771.29,770.75,0.86815524]
[1754578802492,0.716,771.29,770.8,0.86815524]
[1754578802993,0.716,771.29,770.76,0.86815524]
[1754578803796,0.716,771.29,770.77,0.86815524]
[1754578804492,0.716,771.29,770.76,0.86815524]
[1754578805191,0.716,771.29,770.75,0.86815524]
[1754578805394,0.716,771.29,770.74,0.86815524]
[1754578805692,0.952,771.28,770.73,0.86815524]
[1754578806491,0.952,771.28,770.71,0.86815524]
[1754578807096,0.952,771.28,770.72,0.86815524]
[1754578807295,0.952,771.28,770.77,0.86815524]
[1754578807498,0.952,771.28,770.76,0.86815524]
[1754578808398,0.952,771.28,770.75,0.86815524]
[1754578810399,0.952,771.28,770.74,0.86815524]
[1754578810601,1.004,771.27,770.74,0.86815524]
[1754578811099,1.004,771.27,770.69,0.86815524]
[1754578811297,1.004,771.27,770.66,0.86815524]
[1754578811501,1.004,771.27,770.45,1.156152]
[1754578811502,1.004,771.27,770.59,0.86815524]
[1754578812499,1.004,771.27,770.58,0.86815524]
[1754578812797,1.004,771.27,770.56,0.86815524]
[1754578813501,1.004,771.27,770.54,0.86815524]
[1754578814196,1.004,771.27,770.34,0.22571387]
[1754578814197,1.004,771.27,770.53,0.86815524]
[1754578816599,1.004,771.27,770.55,0.86815524]
[1754578816799,1.004,771.27,770.57,0.86815524]
[1754578817001,1.004,771.27,770.58,0.86815524]
[1754578817904,1.004,771.27,770.57,0.86815524]
[1754578818304,1.004,771.27,770.56,0.86815524]
[1754578818503,1.004,771.27,770.54,0.86815524]
[1754578818702,1.004,771.27,770.53,0.86815524]
[1754578819002,1.004,771.27,770.34,0.22571387]
[1754578821501,1.004,771.27,770.34,1.09386911]
[1754578822202,1.004,771.27,770.35,0.86815524]
[1754578822401,1.004,771.27,770.36,0.86815524]
[1754578822604,1.004,771.27,770.4,0.86815524]
[1754578823006,1.004,771.27,770.43,0.86815524]
[1754578823402,1.004,771.27,770.44,0.86815524]
[1754578823607,1.004,771.27,770.35,0.86815524]
[1754578824007,1.004,771.27,770.36,0.86815524]
[1754578824502,1.004,771.27,770.38,0.86815524]
[1754578825803,1.004,771.27,770.4,0.86815524]
[1754578826108,1.004,771.27,770.41,0.86815524]
[1754578826708,1.004,771.27,770.44,0.86815524]
[1754578827106,1.004,771.27,770.43,0.86815524]
[1754578827812,1.004,771.27,770.34,0.22571387]
[1754578827813,1.004,771.27,770.49,0.86815524]
[1754578828010,1.004,771.27,770.51,0.86815524]
[1754578828310,1.004,771.27,770.48,0.86815524]
[1754578828510,1.004,771.27,770.5,0.86815524]
[1754578828811,0.952,771.28,770.5,0.86815524]
[1754578829206,0.952,771.28,770.51,0.86815524]
[1754578829607,0.952,771.28,770.5,0.86815524]
[1754578830009,0.952,771.28,770.51,0.86815524]
[1754578831110,0.952,771.28,770.57,0.86815524]
[1754578831608,0.952,771.28,770.68,0.86815524]
[1754578832008,0.952,771.28,770.71,0.86815524]
[1754578832310,0.952,771.28,770.34,0.22571387]
[1754578832311,0.952,771.28,770.7,0.86815524]
[1754578832808,0.952,771.28,770.75,0.86815524]
[1754578833009,0.952,771.28,770.34,0.22571387]
[1754578833010,0.952,771.28,770.76,0.86815524]
[1754578834006,0.952,771.28,770.77,0.86815524]
[1754578834212,0.952,771.28,770.78,0.86815524]
[1754578834413,0.952,771.28,770.81,0.86815524]
[1754578835214,0.952,771.28,770.82,0.86815524]
[1754578837011,0.952,771.28,770.81,0.86815524]
[1754578837311,0.952,771.28,770.83,0.86815524]
[1754578837709,0.952,771.28,770.85,0.86815524]
[1754578837912,0.952,771.28,770.87,0.86815524]
[1754578838109,0.952,771.28,770.88,0.86815524]
[1754578838313,0.952,771.28,770.34,0.22571387]
[1754578838314,0.952,771.28,770.94,0.86815524]
[1754578838718,0.952,771.28,770.96,0.86815524]
[1754578839120,0.952,771.28,770.97,0.86815524]
[1754578840122,0.952,771.28,770.96,0.86815524]
[1754578840419,0.952,771.28,770.34,0.22571387]
[1754578840420,0.952,771.28,770.94,0.86815524]
[1754578841221,0.952,771.28,770.95,0.86815524]
[1754578841621,0.952,771.28,770.94,0.86815524]
[1754578842319,0.952,771.28,770.95,0.86815524]
[1754578843224,0.952,771.28,770.96,0.86815524]
[1754578843521,0.952,771.28,770.95,0.86815524]
[1754578844125,0.952,771.28,770.98,0.86815524]
[1754578844325,0.952,771.28,770.97,0.86815524]
[1754578844525,1.049,771.66,770.97,0.86815524]
[1754578844725,1.049,771.66,770.98,0.86815524]
[1754578845329,1.049,771.66,770.97,0.86815524]
[1754578847329,0.955,771.65,770.97,0.86815524]
[1754578847928,0.955,771.65,770.96,0.86815524]
[1754578848126,0.955,771.65,770.97,0.86815524]
[1754578848426,0.955,771.65,770.98,0.86815524]
[1754578849228,0.955,771.65,770.99,0.86815524]
[1754578849632,0.955,771.65,770.98,0.86815524]
[1754578850130,0.955,771.65,770.99,0.86815524]
[1754578850728,0.955,771.65,770.98,0.86815524]
[1754578850930,0.955,771.65,770.96,0.86815524]
[1754578852036,0.955,771.65,770.97,0.86815524]
[1754578855337,0.955,771.65,770.79,1.156152]
[1754578855338,0.955,771.65,770.98,0.86815524]
[1754578855940,0.955,771.65,770.97,0.86815524]
[1754578856137,0.955,771.65,770.89,0.86815524]
[1754578857441,0.955,771.65,770.9,0.86815524]
[1754578859346,0.955,771.65,770.91,0.86815524]
[1754578859542,0.955,771.65,770.9,0.86815524]
[1754578860242,0.955,771.65,770.88,0.86815524]
[1754578861545,0.955,771.65,770.87,0.86815524]
[1754578861740,0.955,771.65,770.88,0.86815524]
[1754578861942,0.955,771.65,770.87,0.86815524]
[1754578862844,0.955,771.65,770.84,0.86815524]
[1754578863145,0.955,771.65,770.82,0.86815524]
[1754578863544,0.955,771.65,770.83,0.86815524]
[1754578865243,0.955,771.65,770.76,0.86815524]
[1754578866946,0.955,771.65,770.74,0.86815524]
[1754578867346,0.955,771.65,770.75,0.86815524]
[1754578870151,0.955,771.65,770.76,0.86815524]
[1754578871552,0.955,771.65,770.77,0.86815524]
[1754578872653,0.955,771.65,770.76,0.86815524]
[1754578873453,0.955,771.65,770.77,0.86815524]
[1754578873655,0.955,771.65,770.74,0.86815524]
[1754578879257,0.955,771.65,770.75,0.86815524]
[1754578879962,0.818,771.64,770.75,0.86815524]
[1754578880457,0.818,771.64,770.81,0.86815524]
[1754578881458,0.818,771.64,770.82,0.86815524]
[1754578882358,0.818,771.64,770.83,0.86815524]
[1754578883163,0.818,771.64,770.82,0.86815524]
[1754578883363,0.818,771.64,770.83,0.86815524]
[1754578883558,0.818,771.64,770.85,0.86815524]
[1754578884265,0.818,771.64,770.86,0.86815524]
[1754578885065,0.818,771.64,770.87,0.86815524]
[1754578885466,0.818,771.64,770.88,0.86815524]
[1754578886368,0.818,771.64,770.89,0.86815524]
[1754578887365,0.818,771.64,770.9,0.86815524]
[1754578888665,0.818,771.64,770.91,0.86815524]
[1754578888869,0.818,771.64,770.93,0.86815524]
[1754578889169,1.016,771.63,770.93,0.86815524]
[1754578889365,1.016,771.63,770.94,0.86815524]
[1754578889573,1.016,771.63,770.93,0.86815524]
[1754578890471,1.016,771.63,770.94,0.86815524]
[1754578892473,1.016,771.63,770.95,0.86815524]
[1754578892676,1.016,771.63,770.94,0.86815524]
[1754578893575,1.016,771.63,770.91,0.86815524]
[1754578894478,1.016,771.63,770.92,0.86815524]
[1754578895978,1.016,771.63,770.95,0.86815524]
[1754578896375,1.016,771.63,770.97,0.86815524]
[1754578896874,1.016,771.63,770.98,0.86815524]
[1754578897178,1.016,771.63,771.08,0.86815524]
[1754578897780,1.016,771.63,771.1,0.86815524]
[1754578897982,1.016,771.63,771.09,0.86815524]
[1754578898180,1.016,771.63,771.1,0.86815524]
[1754578898481,1.016,771.63,771.11,0.86815524]
[1754578898781,1.016,771.63,771.07,0.86815524]
[1754578899276,1.016,771.63,771.11,0.86815524]
[1754578899581,1.016,771.63,771.17,0.86815524]
[1754578899877,1.016,771.63,771.21,0.86815524]
[1754578900276,1.016,771.63,770.84,1.7264678]
[1754578900277,1.016,771.63,771.22,0.86815524]
[1754578900478,1.016,771.63,771.21,0.86815524]
[1754578901380,1.016,771.63,771.2,0.86815524]
[1754578902382,0.824,771.62,771.19,0.86815524]
[1754578902880,0.824,771.62,771.2,0.86815524]
[1754578903077,0.824,771.62,771.21,0.86815524]
[1754578903282,0.824,771.62,771.2,0.86815524]
[1754578903781,0.824,771.62,771.22,0.86815524]
[1754578904884,0.824,771.62,771.24,0.86815524]
[1754578905281,0.824,771.62,771.23,0.86815524]
[1754578905784,0.824,771.62,771.28,0.86815524]
[1754578906285,0.824,771.62,771.27,0.86815524]
[1754578906780,0.824,771.62,771.28,0.86815524]
[1754578907283,0.824,771.62,771.12,1.156152]
[1754578907284,0.824,771.62,771.27,0.86815524]
[1754578908284,0.824,771.62,771.26,0.86815524]
[1754578909186,0.824,771.62,771.11,1.156152]
[1754578909187,0.824,771.62,771.27,0.86815524]
[1754578909383,0.824,771.62,771.26,0.86815524]
[1754578910086,0.824,771.62,771.27,0.86815524]
[1754578910283,0.824,771.62,771.26,0.86815524]
[1754578911388,0.824,771.62,771.25,0.86815524]
[1754578911885,0.824,771.62,771.26,0.86815524]
[1754578912387,0.824,771.62,771.21,0.86815524]
[1754578913283,0.824,771.62,770.85,1.7264678]
[1754578913284,0.824,771.62,771.2,0.86815524]
[1754578913884,0.824,771.62,771.14,0.86815524]
[1754578915285,0.824,771.62,771.13,0.86815524]
[1754578915488,0.824,771.62,771.15,0.86815524]
[1754578916186,0.824,771.62,771.14,0.86815524]
[1754578917286,0.824,771.62,771.13,0.86815524]
[1754578917485,0.824,771.62,771.12,0.86815524]
[1754578917987,0.824,771.62,771.13,0.86815524]
[1754578918392,0.824,771.62,771.12,0.86815524]
[1754578918989,0.824,771.62,771.11,0.86815524]
[1754578919188,0.824,771.62,771.12,0.86815524]
[1754578920590,0.824,771.62,771.12,0.86730296]
[1754578921594,0.824,771.62,771.11,0.86730296]
[1754578923297,0.824,771.62,771.1,0.86730296]
[1754578923597,0.824,771.62,771.13,0.86730296]
[1754578924093,0.824,771.62,771.15,0.86730296]
[1754578925100,0.824,771.62,771.16,0.86730296]
[1754578925501,0.824,771.62,771.17,0.86730296]
[1754578925898,0.824,771.62,771.16,0.86730296]
[1754578926601,0.824,771.62,771.18,0.86730296]
[1754578926901,0.824,771.62,771.16,0.86730296]
[1754578927098,0.824,771.62,771.15,0.86730296]
[1754578929802,0.824,771.62,771.14,0.86730296]
[1754578930204,0.824,771.62,771.16,0.86730296]
[1754578931105,0.824,771.62,771.14,0.86730296]
[1754578931506,0.824,771.62,771.1,0.86730296]
[1754578931703,0.824,771.62,770.99,0.86730296]
[1754578932204,0.824,771.62,771.01,0.86730296]
[1754578932504,0.824,771.62,771.02,0.86730296]
[1754578934308,0.824,771.62,771.03,0.86730296]
[1754578935109,0.824,771.62,771.01,0.86730296]
[1754578936405,0.824,771.62,771.02,0.86730296]
[1754578936710,0.824,771.62,771.03,0.86730296]
[1754578937306,0.824,771.62,771.04,0.86730296]
[1754578937806,0.824,771.62,771.03,0.86730296]
[1754578938210,0.824,771.62,771.02,0.86730296]
[1754578938410,0.824,771.62,770.91,0.86730296]
[1754578940309,0.824,771.62,770.92,0.86730296]
[1754578940508,1.016,771.63,770.92,0.86730296]
[1754578942413,1.016,771.63,770.93,0.86730296]
[1754578942613,1.016,771.63,770.92,0.86730296]
[1754578942910,1.016,771.63,770.93,0.86730296]
[1754578943112,0.892,771.62,770.93,0.86730296]
[1754578944614,0.892,771.62,770.91,0.86730296]
[1754578945513,0.892,771.62,770.92,0.86730296]
[1754578945714,0.892,771.62,770.91,0.86730296]
[1754578946117,0.892,771.62,770.92,0.86730296]
[1754578947317,0.892,771.62,770.93,0.86730296]
[1754578947517,0.892,771.62,770.9,0.86730296]
[1754578947818,0.892,771.62,770.87,0.86730296]
[1754578948017,1.154,771.61,770.87,0.86730296]
[1754578949214,1.154,771.61,770.88,0.86730296]
[1754578951317,1.154,771.61,770.9,0.86730296]
[1754578951520,1.154,771.61,770.93,0.86730296]
[1754578952221,1.154,771.61,770.94,0.86730296]
[1754578952418,1.154,771.61,770.78,1.156152]
[1754578952625,1.154,771.61,770.94,0.86988714]
[1754578954336,1.154,771.61,770.95,0.86988714]
[1754578955723,1.154,771.61,770.64,0.22552006]
[1754578955724,1.154,771.61,770.94,0.86988714]
[1754578956622,1.154,771.61,770.93,0.86988714]
[1754578958224,1.154,771.61,770.92,0.86988714]
[1754578958728,1.154,771.61,770.64,0.22552006]
[1754578958729,1.154,771.61,770.88,0.86988714]
[1754578961130,1.154,771.61,770.87,0.86988714]
[1754578964129,1.154,771.61,770.83,0.86988714]
[1754578964329,1.154,771.61,770.82,0.86988714]
[1754578964631,1.154,771.61,770.64,0.22552006]
[1754578964632,1.154,771.61,770.77,0.86988714]
[1754578965235,1.154,771.61,770.81,0.86988714]
[1754578965530,1.154,771.61,770.82,0.86988714]
[1754578966239,1.154,771.61,770.81,0.86988714]
[1754578967745,1.154,771.61,770.82,0.86988714]
[1754578968336,1.154,771.61,770.81,0.86988714]
[1754578968834,1.154,771.61,770.82,0.86988714]
[1754578972039,1.154,771.61,770.64,0.22552006]
[1754578972040,1.154,771.61,770.81,0.86988714]
[1754578972240,1.154,771.61,770.8,0.86988714]
[1754578973037,1.154,771.61,770.79,0.86916644]
[1754578974744,1.154,771.61,770.8,0.86916644]
[1754578975040,1.154,771.61,770.74,0.86916644]
[1754578975644,1.154,771.61,770.72,0.86916644]
[1754578975847,1.154,771.61,770.7,0.86916644]
[1754578976145,1.154,771.61,770.64,0.22552006]
[1754578976554,0.82681945,771.6,770.64,0.22552006]
[1754578976849,0.82681945,771.59,770.64,0.22552006]
[1754578977046,0.82681945,771.58,770.64,0.22552006]
[1754578977249,0.82681945,771.57,770.64,0.22552006]
[1754578977548,0.82673424,771.56,770.64,0.22552006]
[1754578977745,0.82673424,771.55,770.64,0.22552006]
[1754578977944,0.82673424,771.54,770.64,0.22552006]
[1754578978151,1.154,771.61,770.64,0.22552006]
[1754578978345,0.82653694,771.6,770.64,0.22552006]
[1754578978545,0.82653694,771.59,770.64,0.22552006]
[1754578978747,0.82653694,771.58,770.64,0.22552006]
[1754578978949,0.82653694,771.57,770.64,0.22552006]
[1754578979146,0.82653694,771.56,770.64,0.22552006]
[1754578979350,1.154,771.61,770.64,0.22552006]
[1754578979550,0.82625964,771.6,770.64,0.22552006]
[1754578979748,0.82625964,771.59,770.64,0.22552006]
[1754578979951,0.82625964,771.58,770.64,0.22552006]
[1754578980146,0.82625964,771.57,770.64,0.22552006]
[1754578980454,0.82625964,771.56,770.64,0.22552006]
[1754578980652,0.813,771.56,770.64,0.22552006]
[1754578984456,1.149,771.55,770.64,0.22552006]
[1754578986252,0.82649408,771.54,770.64,0.22552006]
[1754578986461,0.82649408,771.53,770.64,0.22552006]
[1754578986657,0.82659023,771.52,770.64,0.22552006]
[1754578986856,0.82659023,771.51,770.64,0.22552006]
[1754578987152,1.149,771.55,770.64,0.22552006]
[1754578987455,0.82666069,771.54,770.64,1.0946652]
[1754578987752,0.82666069,771.53,770.72,0.86914514]
[1754578987952,1.149,771.55,770.73,0.86914514]
[1754578988155,0.82658886,771.54,770.81,0.86914514]
[1754578988365,1.149,771.55,770.81,0.86914514]
[1754578988558,1.149,771.55,770.8,0.86914514]
[1754578988852,1.149,771.55,770.81,0.86914514]
[1754578989158,1.149,771.55,770.82,0.86914514]
[1754578989457,1.149,771.55,770.88,0.86914514]
[1754578989853,1.149,771.55,770.91,0.86914514]
[1754578990158,1.149,771.55,770.92,0.86914514]
[1754578991053,1.149,771.55,770.93,0.86914514]
[1754578992254,1.149,771.55,770.94,0.86914514]
[1754578993654,1.149,771.55,770.95,0.86914514]
[1754578994156,1.149,771.55,770.96,0.86914514]
[1754578995055,1.149,771.55,770.97,0.86914514]
[1754578997161,1.149,771.55,770.98,0.86914514]
[1754578998864,1.149,771.55,770.99,0.86914514]
[1754578999268,1.149,771.55,771.0,0.86914514]
[1754578999662,1.149,771.55,771.01,0.86914514]
[1754579000961,1.02,771.54,771.01,0.86914514]
[1754579002169,1.02,771.54,771.02,0.86914514]
[1754579003571,1.02,771.54,771.03,0.86914514]
[1754579004371,1.02,771.54,771.01,0.86914514]
[1754579007169,1.02,771.54,770.99,0.86914514]
[1754579009671,1.02,771.54,771.03,0.86914514]
[1754579009872,1.02,771.54,771.06,0.86914514]
[1754579010273,1.02,771.54,771.05,0.86914514]
[1754579010979,1.02,771.54,771.07,0.86914514]
[1754579014382,1.02,771.54,771.05,0.86914514]
[1754579017981,1.02,771.54,770.93,0.86914514]
[1754579018880,1.02,771.54,770.95,0.86914514]
[1754579019578,1.02,771.54,770.93,0.86914514]
[1754579020078,1.149,771.53,770.88,0.86914514]
[1754579020282,1.149,771.53,770.87,0.86914514]
[1754579020481,1.149,771.53,770.85,0.86914514]
[1754579020678,1.149,771.53,770.84,0.86914514]
[1754579021178,1.149,771.53,770.85,0.86914514]
[1754579023783,1.149,771.53,770.83,0.86914514]
[1754579025885,1.149,771.53,770.82,0.86914514]
[1754579026382,1.149,771.53,770.83,0.86914514]
[1754579027383,1.149,771.53,770.84,0.86914514]
[1754579027782,1.149,771.53,770.85,0.86914514]
[1754579029784,1.149,771.53,770.87,0.86914514]
[1754579030086,1.149,771.53,770.88,0.86914514]
[1754579031288,1.149,771.53,770.87,0.86914514]
[1754579031886,1.149,771.53,770.88,0.86914514]
[1754579032886,1.149,771.53,770.95,0.86914514]
[1754579033292,1.149,771.53,770.96,0.86914514]
[1754579033795,1.149,771.53,770.95,0.86914514]
[1754579034888,1.149,771.53,770.96,0.86914514]
[1754579036190,1.149,771.53,770.97,0.86914514]
[1754579038198,1.149,771.53,770.98,0.86914514]
[1754579040599,1.149,771.53,770.92,0.86914514]
[1754579041197,1.149,771.53,770.87,0.86914514]
[1754579042200,1.149,771.53,770.88,0.86914514]
[1754579043300,1.149,771.53,770.89,0.86914514]
[1754579043503,1.149,771.53,770.88,0.86914514]
[1754579044304,1.149,771.53,770.89,0.86914514]
[1754579044504,1.149,771.53,770.88,0.86914514]
[1754579044900,0.821,771.52,770.88,0.86914514]
[1754579045204,0.821,771.52,770.89,0.86914514]
[1754579046202,0.821,771.52,770.91,0.86914514]
[1754579046404,0.821,771.52,770.9,0.86914514]
[1754579047204,0.821,771.52,770.78,0.86914514]
[1754579049107,0.86207503,771.46,770.76,0.86914514]
[1754579049312,0.86207503,771.43,770.71,0.86914514]
[1754579049713,0.86207503,771.43,770.7,0.86914514]
[1754579050212,0.86207503,771.45,770.69,0.86914514]
[1754579050412,0.82879907,771.44,770.69,0.86914514]
[1754579050714,0.86207503,771.45,770.69,0.86914514]